bitfinex/quotes_BTCUSD_20220405
["timestamp","ask_amount","ask_price","bid_price","bid_amount"]
[1649187510284,0.321648,45957.0,45953.0,0.01088]
[1649187510384,0.28100225,45958.0,45953.0,0.01088]
[1649187510484,0.3010244,45956.0,45953.0,0.01088]
[1649187511186,0.40984369,45956.0,45953.0,0.01088]
[1649187511285,0.51866869,45956.0,45953.0,0.01088]
[1649187511389,0.321648,45955.0,45953.0,0.01088]
[1649187511485,0.371648,45955.0,45952.0,0.02176]
[1649187511686,0.371648,45955.0,45952.0,0.02168091]
[1649187511786,0.421648,45955.0,45952.0,0.02168091]
[1649187511984,0.465148,45955.0,45952.0,0.02168091]
[1649187512489,0.35115657,45953.0,45952.0,0.02168091]
[1649187512638,0.75584827,45953.0,45952.0,0.02168091]
[1649187512739,0.80584827,45953.0,45952.0,0.02168091]
[1649187513244,0.4546917,45953.0,45952.0,0.02168091]
[1649187513787,0.4981917,45953.0,45952.0,0.02168091]
[1649187514284,0.81645324,45953.0,45952.0,0.02168091]
[1649187514986,0.4981917,45953.0,45952.0,0.02168091]
[1649187517548,0.120815,45964.0,45953.0,0.02634724]
[1649187517549,0.58811097,45963.0,45953.0,0.02634724]
[1649187517644,0.58811097,45963.0,45958.0,0.01100778]
[1649187517742,0.5,45962.0,45953.0,0.32634724]
[1649187517842,0.00051097,45963.0,45958.0,0.01100778]
[1649187517941,0.00051097,45963.0,45953.0,0.32634724]
[1649187518045,0.012,45964.0,45953.0,0.32634724]
[1649187518342,0.00049211,45963.0,45953.0,0.32634724]
[1649187518447,0.321527,45962.0,45954.0,0.25788609]
[1649187518543,0.00049211,45963.0,45954.0,0.25788609]
[1649187519044,0.00049211,45963.0,45954.0,0.25288609]
[1649187519148,0.29560766,45964.0,45954.0,0.25288609]
[1649187519347,0.29560766,45964.0,45954.0,0.26376609]
[1649187519446,0.0004921,45963.0,45954.0,0.26376609]
[1649187519546,0.0004921,45963.0,45958.0,0.22491002]
[1649187519995,0.0004921,45963.0,45954.0,0.26376609]
[1649187520100,0.0004921,45963.0,45959.0,0.00221896]
[1649187520200,0.0004921,45963.0,45954.0,0.26376609]
[1649187520397,0.39560766,45964.0,45954.0,0.26376609]
[1649187520498,0.012,45964.0,45954.0,0.26376609]
[1649187520598,0.00049426,45963.0,45954.0,0.26376609]
[1649187521533,0.012,45964.0,45954.0,0.26376609]
[1649187521634,0.24714394,45964.0,45958.0,0.30878671]
[1649187521733,0.29714394,45964.0,45954.0,0.26376609]
[1649187521834,0.00047592,45963.0,45954.0,0.26376609]
[1649187522133,0.00047592,45963.0,45955.0,0.321527]
[1649187522233,0.00047592,45963.0,45957.0,0.321527]
[1649187522333,0.00047592,45963.0,45958.0,0.01088]
[1649187522432,0.00047592,45963.0,45959.0,0.321527]
[1649187522533,0.00047592,45963.0,45960.0,0.01088]
[1649187522636,0.00047592,45963.0,45957.0,0.01088]
[1649187522733,0.012,45964.0,45957.0,0.01088]
[1649187522935,0.012,45964.0,45960.0,0.22919512]
[1649187523036,0.01247592,45964.0,45957.0,0.01088]
[1649187523986,0.012,45964.0,45958.0,0.26628637]
[1649187524087,0.012,45964.0,45959.0,0.01088]
[1649187524239,0.0004764,45963.0,45959.0,0.01088]
[1649187525134,0.012,45964.0,45959.0,0.01088]
[1649187525435,0.00047756,45963.0,45959.0,0.01088]
[1649187525983,0.00047756,45963.0,45957.0,0.01088]
[1649187526182,0.00047756,45963.0,45955.0,0.01088]
[1649187526384,0.012,45964.0,45955.0,0.01088]
[1649187526635,0.00047756,45963.0,45955.0,0.01088]
[1649187526835,0.10927756,45963.0,45958.0,0.26379723]
[1649187526987,0.054405,45961.0,45955.0,0.01088]
[1649187528190,0.05440596,45960.0,45955.0,0.01088]
[1649187528335,0.054402,45959.0,45955.0,0.01088]
[1649187528435,0.054402,45959.0,45956.0,0.321527]
[1649187528535,0.10927748,45963.0,45957.0,0.01088]
[1649187528648,0.10927748,45963.0,45957.0,0.3]
[1649187528745,0.10927748,45963.0,45958.0,0.01088]
[1649187528746,0.1088,45963.0,45958.0,0.01088]
[1649187529094,0.10927739,45963.0,45958.0,0.01088]
[1649187529794,0.10927739,45963.0,45955.0,0.01088]
[1649187529995,0.1088,45963.0,45955.0,0.01088]
[1649187530294,0.00047739,45963.0,45955.0,0.01088]
[1649187530644,0.00047739,45963.0,45956.0,0.321527]
[1649187530747,0.00047739,45963.0,45957.0,0.01088]
[1649187530844,0.00047739,45963.0,45955.0,0.01088]
[1649187531146,0.066396,45964.0,45955.0,0.01088]
[1649187531349,0.30624591,45962.0,45955.0,0.01088]
[1649187531648,0.108809,45961.0,45955.0,0.01088]
[1649187532100,0.158809,45961.0,45954.0,0.01088]
[1649187532698,0.21321318,45961.0,45954.0,0.01088]
[1649187532998,0.25184795,45959.0,45953.0,0.02634724]
[1649187533196,0.054404,45959.0,45953.0,0.02634724]
[1649187533296,0.054404,45959.0,45954.0,0.01088]
[1649187533598,0.05,45961.0,45955.0,0.321527]
[1649187533848,0.012,45964.0,45954.0,0.01088]
[1649187534048,0.00047739,45963.0,45954.0,0.01088]
[1649187534251,0.00047739,45963.0,45954.0,0.24479382]
[1649187534700,0.00047739,45963.0,45958.0,0.27268902]
[1649187534800,0.27987466,45964.0,45954.0,0.24479382]
[1649187535002,0.0004774,45963.0,45954.0,0.24479382]
[1649187535103,0.0004774,45963.0,45954.0,0.54479382]
[1649187535203,0.0004774,45963.0,45954.0,0.24479382]
[1649187535403,0.0004774,45963.0,45954.0,0.01088]
[1649187535604,0.321527,45962.0,45954.0,0.01088]
[1649187535704,0.0004774,45963.0,45954.0,0.01088]
[1649187535854,0.321527,45962.0,45954.0,0.01088]
[1649187535954,0.108809,45961.0,45954.0,0.01088]
[1649187536157,0.321527,45960.0,45954.0,0.01088]
[1649187536560,0.241761,45958.0,45954.0,0.01088]
[1649187536859,0.291761,45958.0,45954.0,0.01088]
[1649187536961,0.05441,45957.0,45954.0,0.01088]
[1649187537060,0.37593612,45956.0,45954.0,0.01088]
[1649187537160,0.23621556,45955.0,45954.0,0.01088]
[1649187537361,0.23621556,45955.0,45954.0,0.01745007]
[1649187537462,0.23621556,45955.0,45954.0,0.00657007]
[1649187537463,0.55774256,45955.0,45954.0,0.00657007]
[1649187538612,0.55774256,45955.0,45954.0,0.01745007]
[1649187539114,0.321527,45955.0,45954.0,0.01745007]
[1649187539667,0.371527,45955.0,45954.0,0.00657007]
[1649187540707,0.59053907,45955.0,45954.0,0.00657007]
[1649187541208,0.64053907,45955.0,45954.0,0.00657007]
[1649187542011,0.64053907,45955.0,45954.0,0.00645811]
[1649187545145,0.68403907,45955.0,45953.0,0.02634724]
[1649187545252,0.68403907,45955.0,45944.0,0.00047758]
[1649187545253,0.27481355,45954.0,45944.0,0.00047758]
[1649187545346,0.321527,45952.0,45944.0,0.00047758]
[1649187545447,0.054431,45951.0,45944.0,0.00047758]
[1649187545550,0.163305,45949.0,45944.0,0.00047758]
[1649187545701,0.24780582,45939.0,45936.0,0.01088]
[1649187545800,0.24780582,45939.0,45938.0,0.16988804]
[1649187545900,0.163305,45949.0,45938.0,0.18076804]
[1649187545901,0.0435,45946.0,45938.0,0.18076804]
[1649187545996,0.321527,45945.0,45943.0,0.16988804]
[1649187546096,0.321527,45945.0,45944.0,0.16988804]
[1649187546197,0.66080443,45945.0,45944.0,0.16988804]
[1649187546298,0.71080443,45945.0,45944.0,0.16988804]
[1649187546948,1.00316803,45945.0,45944.0,0.16988804]
[1649187547492,0.57852772,45945.0,45944.0,0.16988804]
[1649187547595,0.82028272,45945.0,45944.0,0.16988804]
[1649187549094,0.87028272,45945.0,45944.0,0.16988804]
[1649187549194,0.91378272,45945.0,45944.0,0.16988804]
[1649187549499,0.108868,45943.0,45942.0,0.00047881]
[1649187549650,0.455058,45943.0,45942.0,0.00047881]
[1649187549748,0.505058,45943.0,45942.0,0.00047881]
[1649187550252,0.548558,45943.0,45942.0,0.00047881]
[1649187550452,0.548558,45943.0,45933.0,0.01089]
[1649187550549,0.22747535,45934.0,45933.0,0.01089]
[1649187550650,0.22747535,45934.0,45930.0,0.01089]
[1649187550752,0.22747535,45934.0,45932.0,0.00191884]
[1649187550906,0.22747535,45934.0,45933.0,0.01089]
[1649187551749,0.22747535,45934.0,45926.0,0.01089]
[1649187551849,0.22747535,45934.0,45931.0,0.00047968]
[1649187551950,0.22747535,45934.0,45932.0,0.01089]
[1649187552354,0.03305528,45936.0,45932.0,0.01089]
[1649187552653,0.054435,45935.0,45932.0,0.01089]
[1649187552856,0.104435,45935.0,45932.0,0.01089]
[1649187552958,0.104435,45935.0,45925.0,0.21091231]
[1649187552959,0.104435,45935.0,45926.0,0.01089]
[1649187553058,0.054435,45935.0,45932.0,0.00047948]
[1649187553160,0.241755,45934.0,45932.0,0.00047948]
[1649187553312,0.241755,45934.0,45933.0,0.01089]
[1649187553413,0.104435,45935.0,45932.0,0.00047948]
[1649187553509,0.152388,45934.0,45932.0,0.00047948]
[1649187553713,0.291755,45933.0,45932.0,0.00047948]
[1649187554009,1.6,45932.0,45925.0,0.00191823]
[1649187554116,0.22407105,45926.0,45916.0,0.01089]
[1649187554261,0.241755,45925.0,45916.0,0.01089]
[1649187554612,0.241755,45925.0,45917.0,0.25811]
[1649187554715,0.241755,45925.0,45918.0,0.01089]
[1649187555149,0.44605822,45925.0,45918.0,0.01089]
[1649187555255,0.054452,45923.0,45915.0,0.01089]
[1649187555355,0.241755,45922.0,45913.0,0.01089]
[1649187555450,0.39162862,45919.0,45913.0,0.01089]
[1649187555552,0.39162862,45919.0,45908.0,0.3]
[1649187555553,0.05,45923.0,45911.0,0.01089]
[1649187555650,0.108917,45918.0,45910.0,0.01089]
[1649187555752,0.14198582,45918.0,45910.0,0.01089]
[1649187555955,0.241755,45917.0,45910.0,0.01089]
[1649187556151,0.23496282,45915.0,45909.0,0.01089]
[1649187556252,0.22476682,45916.0,45909.0,0.01089]
[1649187556554,0.054464,45914.0,45909.0,0.01089]
[1649187556752,0.054464,45914.0,45910.0,0.00053298]
[1649187556902,0.241755,45913.0,45911.0,0.01089]
[1649187557002,0.054464,45914.0,45913.0,0.59355332]
[1649187557100,0.296219,45914.0,45913.0,0.59355332]
[1649187557752,0.350683,45914.0,45913.0,0.59355332]
[1649187558052,0.34539861,45914.0,45913.0,0.59355332]
[1649187558301,0.296219,45914.0,45913.0,0.59355332]
[1649187558747,0.054464,45914.0,45913.0,0.59355332]
[1649187559350,0.241755,45916.0,45913.0,0.59355332]
[1649187559502,0.291755,45916.0,45913.0,0.59355332]
[1649187559599,0.05,45916.0,45913.0,0.59355332]
[1649187559702,0.05,45917.0,45913.0,0.59355332]
[1649187559900,0.241755,45916.0,45913.0,0.59355332]
[1649187560000,0.05,45917.0,45913.0,0.59355332]
[1649187560101,0.05,45916.0,45913.0,0.59355332]
[1649187560204,0.05,45917.0,45913.0,0.59355332]
[1649187560302,0.241755,45916.0,45913.0,0.59355332]
[1649187560402,0.1435,45918.0,45913.0,0.59355332]
[1649187560506,0.05,45916.0,45913.0,0.59355332]
[1649187560603,0.1435,45918.0,45913.0,0.59355332]
[1649187561553,0.1435,45918.0,45913.0,0.59403654]
[1649187561855,0.27482973,45917.0,45913.0,0.59403654]
[1649187562054,0.3837457,45917.0,45913.0,0.59403654]
[1649187562303,0.4337457,45917.0,45913.0,0.59403654]
[1649187562507,0.05,45916.0,45913.0,0.59403654]
[1649187562603,0.296215,45915.0,45913.0,0.59355332]
[1649187563803,0.05446,45915.0,45913.0,0.59355332]
[1649187564406,0.241755,45914.0,45913.0,0.59355332]
[1649187564605,0.05,45914.0,45913.0,0.59355332]
[1649187564706,0.05446,45915.0,45913.0,0.59355332]
[1649187564806,0.241755,45914.0,45913.0,0.59355332]
[1649187565006,0.05,45914.0,45913.0,0.59355332]
[1649187565309,0.05446,45915.0,45913.0,0.59355332]
[1649187565510,0.241755,45914.0,45913.0,0.59355332]
[1649187565609,0.05446,45915.0,45913.0,0.59355332]
[1649187565708,0.291755,45914.0,45913.0,0.59355332]
[1649187565815,0.05446,45915.0,45913.0,0.59355332]
[1649187566760,0.241755,45914.0,45913.0,0.59355332]
[1649187566860,0.05446,45915.0,45913.0,0.76344136]
[1649187566961,0.05446,45915.0,45913.0,0.59355332]
[1649187567267,0.241577,45914.0,45913.0,0.59355332]
[1649187567360,0.241577,45914.0,45913.0,0.76344136]
[1649187567462,0.291577,45914.0,45913.0,0.76344136]
[1649187567561,0.05,45914.0,45913.0,0.76344136]
[1649187567864,0.05446,45915.0,45913.0,0.76344136]
[1649187567964,0.291577,45914.0,45913.0,0.59355332]
[1649187568066,0.05,45914.0,45913.0,0.59355332]
[1649187568164,0.05,45914.0,45913.0,0.76344136]
[1649187568367,0.05446,45915.0,45913.0,0.76344136]
[1649187568467,0.241577,45914.0,45913.0,0.59355332]
[1649187568564,0.05446,45915.0,45913.0,0.76344136]
[1649187568669,0.241577,45914.0,45913.0,0.59355332]
[1649187568769,0.241577,45914.0,45913.0,0.76344136]
[1649187568865,0.05,45914.0,45913.0,0.76344136]
[1649187568972,0.05446,45915.0,45913.0,0.76344136]
[1649187569069,0.1,45917.0,45914.0,0.16988804]
[1649187569070,0.05,45917.0,45914.0,0.16988804]
[1649187569175,0.5955,45925.0,45915.0,0.3]
[1649187569268,0.8232,45927.0,45915.0,0.3]
[1649187569269,0.1,45922.0,45915.0,0.3]
[1649187569369,0.1,45925.0,45915.0,0.3]
[1649187569517,0.05,45925.0,45915.0,0.3]
[1649187569618,0.05,45923.0,45915.0,0.3]
[1649187570051,0.24979734,45925.0,45919.0,0.25041952]
[1649187570152,0.241577,45924.0,45918.0,0.24038879]
[1649187570403,0.291577,45924.0,45918.0,0.24038879]
[1649187570501,0.05,45923.0,45918.0,0.24038879]
[1649187570700,0.291577,45922.0,45918.0,0.24038879]
[1649187570803,0.05,45922.0,45918.0,0.24038879]
[1649187571004,0.05,45923.0,45918.0,0.24038879]
[1649187571101,0.15444,45927.0,45918.0,0.24038879]
[1649187571206,0.05,45922.0,45918.0,0.2409177]
[1649187571301,0.05,45926.0,45918.0,0.2409177]
[1649187571404,0.241577,45925.0,45918.0,0.2409177]
[1649187571804,0.291577,45925.0,45918.0,0.2409177]
[1649187572204,0.291577,45925.0,45918.0,0.24038879]
[1649187572404,0.291577,45925.0,45919.0,0.0005289]
[1649187572508,0.24124547,45924.0,45919.0,0.0005289]
[1649187572605,0.241577,45923.0,45919.0,0.0005289]
[1649187572705,0.341577,45923.0,45919.0,0.0005289]
[1649187573260,0.396022,45923.0,45919.0,0.0005289]
[1649187573357,0.396022,45923.0,45914.0,0.01089]
[1649187573457,0.108902,45922.0,45914.0,0.01089]
[1649187573557,0.241577,45921.0,45919.0,0.0005289]
[1649187573710,1.45,45920.0,45914.0,0.01089]
[1649187573807,0.241577,45919.0,45914.0,0.01089]
[1649187573908,0.241577,45919.0,45913.0,0.59355332]
[1649187574005,0.27464734,45919.0,45913.0,0.59355332]
[1649187574105,0.241577,45915.0,45913.0,0.59355332]
[1649187574207,0.29604189,45915.0,45913.0,0.59355332]
[1649187574404,0.34604189,45915.0,45913.0,0.59355332]
[1649187575209,0.35050689,45915.0,45913.0,0.59355332]
[1649187576661,0.05,45914.0,45913.0,0.59355332]
[1649187576760,0.291577,45914.0,45913.0,0.59355332]
[1649187577587,0.05,45914.0,45913.0,0.59355332]
[1649187577788,0.0435,45915.0,45913.0,0.59355332]
[1649187578591,0.054467,45918.0,45913.0,0.59355332]
[1649187578691,0.1,45925.0,45914.0,0.3]
[1649187578989,0.05444,45926.0,45914.0,0.3]
[1649187579090,0.05,45925.0,45914.0,0.3]
[1649187579191,0.05444,45926.0,45915.0,0.01089]
[1649187579490,0.05444,45926.0,45919.0,0.59912894]
[1649187579691,0.36583856,45931.0,45920.0,0.3]
[1649187579692,0.00051412,45930.0,45920.0,0.3]
[1649187579793,0.00051412,45930.0,45921.0,0.01089]
[1649187579794,0.65324,45929.0,45921.0,0.01089]
[1649187579993,0.65324,45929.0,45927.0,0.321741]
[1649187580091,0.65324,45929.0,45928.0,0.32190281]
[1649187580342,0.65324,45929.0,45928.0,0.64364381]
[1649187580442,0.65324,45929.0,45928.0,0.34364381]
[1649187580545,0.65324,45929.0,45928.0,0.59105675]
[1649187581302,0.65324,45929.0,45928.0,0.34364381]
[1649187581400,0.65324,45929.0,45928.0,0.33763682]
[1649187581900,0.64165874,45929.0,45928.0,0.33763682]
[1649187582204,0.64165874,45929.0,45928.0,0.5827481]
[1649187583505,0.64165874,45929.0,45928.0,0.33763682]
[1649187583810,0.64165874,45929.0,45928.0,0.01589582]
[1649187584407,0.86583795,45929.0,45928.0,0.01589582]
[1649187584508,0.64165874,45929.0,45928.0,0.01589582]
[1649187586252,0.64165874,45929.0,45928.0,0.33763682]
[1649187587904,0.64165874,45929.0,45928.0,0.63763682]
[1649187588108,0.64165874,45929.0,45928.0,0.33763682]
[1649187588758,0.64165874,45929.0,45928.0,0.63763682]
[1649187588960,0.04829159,45929.0,45928.0,0.63763682]
[1649187590162,0.04829159,45929.0,45928.0,0.33763682]
[1649187591621,0.04829159,45929.0,45928.0,1.30243682]
[1649187591719,0.04829159,45929.0,45928.0,1.41126582]
[1649187591917,0.04829159,45929.0,45928.0,1.11126582]
[1649187592017,0.00050682,45931.0,45928.0,1.11126582]
[1649187592118,0.00050682,45931.0,45930.0,0.01101281]
[1649187592217,0.00050682,45931.0,45930.0,0.34364381]
[1649187592598,0.00050682,45931.0,45930.0,0.86570009]
[1649187592697,0.0011,45942.0,45930.0,0.86570009]
[1649187592799,0.0011,45942.0,45937.0,0.29612984]
[1649187592900,0.0011,45942.0,45934.0,0.31089]
[1649187592901,0.30927747,45942.0,45934.0,0.31089]
[1649187592999,0.30927747,45942.0,45934.0,0.01089]
[1649187593098,0.35927747,45942.0,45932.0,0.01089]
[1649187593300,0.35927747,45942.0,45927.0,0.01089]
[1649187593903,0.35927747,45942.0,45930.0,0.2258278]
[1649187594058,0.03305457,45937.0,45931.0,0.01089]
[1649187594152,0.03305457,45937.0,45936.0,0.00041352]
[1649187594153,0.03352577,45937.0,45936.0,0.00041352]
[1649187594355,0.2992262,45937.0,45936.0,0.00041352]
[1649187595054,0.54406647,45937.0,45936.0,0.00041352]
[1649187595403,0.84406647,45937.0,45936.0,0.00041352]
[1649187598908,0.54406647,45937.0,45936.0,0.00041352]
[1649187599612,0.89406647,45937.0,45936.0,0.00041352]
[1649187599714,0.94406647,45937.0,45922.0,0.01089]
[1649187599814,0.054448,45933.0,45920.0,0.01089]
[1649187599925,0.108907,45931.0,45918.0,0.01089]
[1649187600013,0.108907,45931.0,45917.0,0.01136724]
[1649187600112,0.108906,45930.0,45917.0,0.01136724]
[1649187600261,0.3,45929.0,45917.0,0.01136724]
[1649187600361,0.3935,45929.0,45917.0,0.01136724]
[1649187600465,0.4435,45929.0,45917.0,0.01136724]
[1649187600562,0.42662709,45929.0,45922.0,0.24621113]
[1649187600664,0.1435,45929.0,45927.0,0.22493652]
[1649187600769,0.0435,45929.0,45927.0,0.22493652]
[1649187600967,0.00047701,45939.0,45928.0,0.332631]
[1649187601068,0.00047701,45939.0,45929.0,0.321741]
[1649187601164,0.0011,45942.0,45930.0,0.01089]
[1649187601269,0.0011,45942.0,45931.0,0.376157]
[1649187601363,0.0011,45942.0,45932.0,0.01089]
[1649187601463,0.0011,45942.0,45933.0,0.321741]
[1649187601618,0.0011,45942.0,45938.0,0.30418492]
[1649187602515,0.00157615,45942.0,45938.0,0.30418492]
[1649187602816,0.00157615,45942.0,45930.0,0.01089]
[1649187602914,0.00157615,45942.0,45931.0,0.321741]
[1649187603015,0.00157615,45942.0,45932.0,0.01089]
[1649187603113,0.34232068,45942.0,45932.0,0.01089]
[1649187603215,0.34232068,45942.0,45928.0,0.01089]
[1649187603364,0.34232068,45942.0,45926.0,0.01089]
[1649187603466,0.34184453,45942.0,45926.0,0.01089]
[1649187603564,0.3,45941.0,45926.0,0.01089]
[1649187603710,0.054424,45939.0,45926.0,0.01089]
[1649187603810,0.33568979,45936.0,45929.0,0.29678307]
[1649187603909,0.33568979,45936.0,45930.0,0.01089]
[1649187604014,0.33568979,45936.0,45927.0,0.01089]
[1649187604110,0.05443422,45936.0,45927.0,0.01089]
[1649187604863,0.05443422,45936.0,45923.0,0.01089]
[1649187604964,0.05443422,45936.0,45922.0,0.01089]
[1649187605163,0.30229522,45934.0,45926.0,0.25410712]
[1649187605264,0.30229522,45934.0,45927.0,0.01089]
[1649187605367,0.0004762,45934.0,45927.0,0.01089]
[1649187606018,0.054435,45935.0,45927.0,0.01089]
[1649187606115,0.00047632,45933.0,45927.0,0.01089]
[1649187606818,0.00047632,45933.0,45928.0,0.321741]
[1649187606919,0.00047632,45933.0,45929.0,0.332631]
[1649187607117,0.0011,45942.0,45929.0,0.01089]
[1649187607320,0.0011,45942.0,45930.0,0.01089]
[1649187607461,0.00047632,45933.0,45928.0,0.321741]
[1649187607560,0.00047632,45933.0,45929.0,0.01089]
[1649187607660,0.00047632,45933.0,45930.0,0.321741]
[1649187607761,0.27139548,45942.0,45941.0,0.00095263]
[1649187607962,0.37139548,45942.0,45941.0,0.00095263]
[1649187608563,0.0011,45942.0,45941.0,0.00095263]
[1649187609613,0.29158038,45942.0,45941.0,0.00095263]
[1649187610116,0.39158038,45942.0,45941.0,0.00095263]
[1649187611632,0.69158038,45942.0,45941.0,0.00095263]
[1649187612133,0.64158038,45942.0,45941.0,0.00095263]
[1649187614039,0.69158038,45942.0,45941.0,0.00095263]
[1649187614639,0.054443,45938.0,45925.0,0.01089]
[1649187614738,0.05444237,45935.0,45925.0,0.01089]
[1649187614937,0.3,45934.0,45925.0,0.01089]
[1649187615131,0.6623432,45935.0,45928.0,0.22335935]
[1649187615235,0.6623432,45935.0,45929.0,0.01089]
[1649187615336,0.3,45934.0,45925.0,0.01089]
[1649187615632,0.3,45934.0,45920.0,0.01089]
[1649187615733,0.05444718,45930.0,45924.0,0.00047637]
[1649187615832,0.05444718,45930.0,45925.0,0.01089]
[1649187615935,0.05444718,45930.0,45924.0,0.00047637]
[1649187616235,0.31709302,45928.0,45924.0,0.22606641]
[1649187616335,0.31709302,45928.0,45924.0,0.00047637]
[1649187616685,0.31709302,45928.0,45920.0,0.01089]
[1649187616890,0.054446,45927.0,45924.0,0.00047638]
[1649187616989,0.3,45931.0,45924.0,0.00047638]
[1649187617089,0.05,45932.0,45924.0,0.00047638]
[1649187617190,0.29110285,45935.0,45924.0,0.00047638]
[1649187617191,0.05,45934.0,45924.0,0.00047638]
[1649187617390,0.03353277,45935.0,45924.0,0.00047638]
[1649187617493,0.03353277,45935.0,45925.0,0.332631]
[1649187617592,0.03353277,45935.0,45925.0,0.01089]
[1649187617692,0.00047626,45935.0,45925.0,0.01089]
[1649187617843,0.00047626,45935.0,45927.0,0.719222]
[1649187617944,0.0011,45942.0,45934.0,0.2996982]
[1649187618041,0.0011,45942.0,45935.0,0.621741]
[1649187618142,0.0011,45942.0,45939.0,0.22726288]
[1649187618242,0.0011,45942.0,45935.0,0.3]
[1649187618342,0.0011,45942.0,45930.0,0.31089]
[1649187618443,0.0011,45942.0,45931.0,0.321741]
[1649187618651,0.0011,45942.0,45932.0,0.01089]
[1649187618753,0.0011,45942.0,45933.0,0.49787698]
[1649187618857,0.0011,45942.0,45935.0,0.321741]
[1649187618954,0.0011,45942.0,45936.0,0.31088]
[1649187619055,0.0011,45942.0,45937.0,0.321741]
[1649187619154,0.0011,45942.0,45937.0,0.376144]
[1649187619253,0.0011,45942.0,45938.0,0.01088]
[1649187619354,0.0011,45942.0,45939.0,0.321741]
[1649187619461,0.00047626,45941.0,45940.0,0.3]
[1649187619555,0.0011,45942.0,45941.0,0.32269351]
[1649187619655,0.0011,45942.0,45941.0,0.64458428]
[1649187619753,0.0011,45942.0,45941.0,0.89143423]
[1649187619957,0.0011,45942.0,45941.0,1.71118219]
[1649187620056,0.0011,45942.0,45941.0,1.3128467]
[1649187620356,0.0011,45942.0,45941.0,1.4128467]
[1649187620564,0.0011,45942.0,45941.0,1.43534855]
[1649187620710,0.0011,45942.0,45941.0,0.70260085]
[1649187620806,0.0011,45942.0,45941.0,0.18931609]
[1649187620913,0.0011,45942.0,45941.0,0.01183251]
[1649187621006,0.0011,45942.0,45941.0,0.00095251]
[1649187621707,0.30795766,45942.0,45941.0,0.00095251]
[1649187622405,0.69242893,45942.0,45941.0,0.00095251]
[1649187622506,0.30795766,45942.0,45941.0,0.00095251]
[1649187623408,0.60795766,45942.0,45941.0,0.00095251]
[1649187623910,0.9689446,45942.0,45941.0,0.00095251]
[1649187624112,0.4011,45942.0,45941.0,2.51e-06]
[1649187624209,0.5011,45942.0,45941.0,2.51e-06]
[1649187624312,0.63211198,45942.0,45941.0,2.51e-06]
[1649187624408,0.05444974,45938.0,45926.0,0.00217592]
[1649187624512,0.10889851,45934.0,45926.0,0.00217592]
[1649187625112,0.41426514,45929.0,45926.0,0.00217592]
[1649187625209,0.41426514,45929.0,45922.0,0.17748358]
[1649187625363,0.23972311,45925.0,45922.0,0.17748358]
[1649187625462,0.2941741,45925.0,45922.0,0.17748358]
[1649187625559,0.2941741,45925.0,45920.0,0.17748358]
[1649187625662,0.2941741,45925.0,45919.0,0.17748358]
[1649187626161,0.054452,45923.0,45919.0,0.17748358]
[1649187626258,0.054452,45923.0,45917.0,0.17748358]
[1649187626356,0.054452,45923.0,45916.0,0.17748358]
[1649187626659,0.05445311,45922.0,45917.0,0.17748358]
[1649187626861,0.05445311,45922.0,45916.0,0.17748358]
[1649187626958,2.15454377,45917.0,45916.0,0.17748358]
[1649187627059,0.05445311,45922.0,45915.0,0.180959]
[1649187627163,0.05445311,45922.0,45916.0,0.17748358]
[1649187627408,0.16336011,45922.0,45916.0,0.17748358]
[1649187627709,0.16336011,45922.0,45917.0,0.17748358]
[1649187628160,0.46627128,45922.0,45917.0,0.17748358]
[1649187628259,0.46627128,45922.0,45916.0,0.17748358]
[1649187628658,0.054454,45921.0,45916.0,0.17748358]
[1649187628959,0.054454,45921.0,45917.0,0.00054398]
[1649187630002,0.054454,45921.0,45915.0,0.17748358]
[1649187630104,0.054454,45921.0,45918.0,0.00081748]
[1649187630206,0.104454,45921.0,45918.0,0.00081748]
[1649187632109,0.104454,45921.0,45917.0,0.0003068]
[1649187632316,0.104454,45921.0,45915.0,0.31802181]
[1649187632513,0.05,45921.0,45917.0,0.00030681]
[1649187632611,0.45195398,45942.0,45920.0,0.00217689]
[1649187632717,0.07766198,45942.0,45920.0,0.00217689]
[1649187632810,0.07766198,45942.0,45917.0,0.17779039]
[1649187632811,0.5827,45941.0,45921.0,0.01089]
[1649187632913,0.1,45933.0,45921.0,0.17748358]
[1649187633010,0.1,45933.0,45922.0,0.01089]
[1649187633113,0.1,45933.0,45922.0,0.18837358]
[1649187633212,0.1,45933.0,45927.0,0.23078169]
[1649187633465,0.1,45933.0,45923.0,0.3]
[1649187633564,0.35585632,45931.0,45923.0,0.3]
[1649187633676,0.38891866,45931.0,45920.0,0.31089]
[1649187633771,0.38891866,45931.0,45921.0,0.01089]
[1649187633772,0.29658741,45924.0,45921.0,0.01089]
[1649187633869,0.08749734,45931.0,45921.0,0.01089]
[1649187633870,0.03306234,45931.0,45921.0,0.01089]
[1649187634473,0.03306234,45931.0,45922.0,0.27736626]
[1649187634573,0.10890126,45927.0,45921.0,0.01089]
[1649187634722,0.10890126,45927.0,45926.0,0.00115355]
[1649187634922,0.10890126,45927.0,45924.0,0.00054352]
[1649187635428,0.05445038,45928.0,45924.0,0.00054352]
[1649187635525,0.03306234,45931.0,45924.0,0.00054352]
[1649187636028,0.03306234,45931.0,45920.0,0.48837358]
[1649187636127,0.03306234,45931.0,45925.0,0.00054352]
[1649187636428,0.32982904,45931.0,45925.0,0.00054352]
[1649187637132,0.32982904,45931.0,45920.0,0.01089]
[1649187637233,0.054444,45929.0,45920.0,0.01089]
[1649187637431,0.054444,45929.0,45926.0,0.0005237]
[1649187637816,0.05444159,45932.0,45926.0,0.0005237]
[1649187638369,0.05444159,45932.0,45921.0,0.59341946]
[1649187638466,0.05444159,45932.0,45921.0,0.29341946]
[1649187638566,0.05444159,45932.0,45927.0,0.00052369]
[1649187638666,0.054444,45929.0,45927.0,0.00052369]
[1649187638870,0.31894803,45934.0,45927.0,0.00052369]
[1649187639021,0.05,45934.0,45927.0,0.00052369]
[1649187639319,0.7975,45935.0,45927.0,0.00052369]
[1649187639519,0.05,45935.0,45921.0,0.59341946]
[1649187639619,1.47938365,45936.0,45921.0,0.59341946]
[1649187639722,1.47938365,45936.0,45929.0,0.00052368]
[1649187639870,0.054433,45932.0,45929.0,0.00052368]
[1649187640773,0.054433,45932.0,45921.0,0.59341946]
[1649187640874,0.054433,45932.0,45921.0,0.29341946]